bitfinex-derivatives/quotes_ETHF0:USTF0_20251107
["timestamp","ask_amount","ask_price","bid_price","bid_amount"]
[1762554699251,0.67166587,3454.4,3454.0,0.6599]
[1762554699458,0.2426,3454.3,3454.2,0.46918]
[1762554700557,0.71178,3454.3,3454.2,0.46918]
[1762554701857,0.2426,3454.3,3454.2,0.46918]
[1762554702163,0.70157,3454.4,3454.3,0.46918]
[1762554702354,0.37560117,3454.5,3454.4,0.46917]
[1762554702656,0.14320117,3454.5,3454.4,0.66007]
[1762554703863,0.00370117,3454.5,3454.4,0.66007]
[1762554704257,0.15160117,3454.5,3454.4,0.66007]
[1762554706457,0.00370117,3454.5,3454.4,0.66007]
[1762554710476,0.15160117,3454.5,3454.4,0.66007]
[1762554710779,0.38400117,3454.5,3454.4,0.66007]
[1762554711678,0.85315117,3454.5,3454.4,0.66007]
[1762554712574,0.1479,3454.0,3453.9,0.0032414]
[1762554712875,0.1479,3454.0,3453.9,0.1941414]
[1762554713275,0.1479,3454.0,3453.9,0.6633714]
[1762554713478,0.70157,3454.4,3454.3,0.46918]
[1762554714376,0.3803,3454.0,3453.9,0.0032414]
[1762554715276,0.3803,3454.0,3453.9,0.4724714]
[1762554718278,0.3803,3454.0,3453.9,0.6633714]
[1762554718778,0.1479,3454.0,3453.9,0.6635714]
[1762554721081,0.67237145,3454.4,3454.3,0.66028]
[1762554721281,0.85185117,3454.5,3453.9,0.0032414]
[1762554721480,0.70027,3454.4,3454.3,0.46918]
[1762554721982,0.70027,3454.4,3454.3,0.66028]
[1762554723587,0.15160117,3454.5,3453.9,0.0032414]
[1762554723588,0.15160117,3454.5,3454.4,0.46917]
[1762554723887,0.85185117,3454.5,3454.4,0.46917]
[1762554724280,0.38270117,3454.5,3454.4,0.46917]
[1762554724882,0.38270117,3454.5,3454.4,0.66027]
[1762554725582,0.85185117,3454.5,3454.4,0.46917]
[1762554726184,0.38270117,3454.5,3454.4,0.46917]
[1762554727090,0.15160117,3454.5,3454.4,0.66027]
[1762554728988,0.38270117,3454.5,3454.4,0.46917]
[1762554730892,0.15160117,3454.5,3454.4,0.66027]
[1762554735588,0.00370117,3454.5,3454.4,0.66027]
[1762554735791,0.14770117,3454.5,3454.4,0.66027]
[1762554737191,0.00370117,3454.5,3454.4,0.66027]
[1762554738681,0.14770117,3454.5,3454.4,0.66027]
[1762554741597,0.37880117,3454.5,3454.4,0.66027]
[1762554744186,0.37880117,3454.5,3454.4,0.46917]
[1762554744500,0.70028,3454.4,3454.3,0.46917]
[1762554745290,0.2311,3454.4,3454.3,0.46917]
[1762554746191,0.70027,3454.4,3454.3,0.46917]
[1762554747700,0.239,3454.0,3453.9,0.0032414]
[1762554747896,0.3755,3454.0,3453.9,0.0032414]
[1762554748096,0.1365,3454.0,3453.9,0.1941414]
[1762554748297,0.1365,3454.0,3453.9,0.6633714]
[1762554754707,0.60572,3454.0,3453.9,0.6633714]
[1762554755311,0.1365,3454.0,3453.9,0.6633714]
[1762554759813,0.3755,3454.0,3453.9,0.4724714]
[1762554761407,0.84472,3454.0,3453.9,0.4724714]
[1762554762211,0.3755,3454.0,3453.9,0.4724714]
[1762554762716,0.71531,3454.1,3454.0,0.66012]
[1762554763118,0.91749363,3454.1,3454.0,0.46922]
[1762554763420,0.2461,3454.1,3454.0,0.46922]
[1762554763720,0.71531,3454.1,3454.0,0.46922]
[1762554764117,0.85722,3454.0,3453.9,0.0032414]
[1762554766422,0.85722,3454.0,3453.9,0.4724814]
[1762554766721,0.85722,3454.0,3453.9,0.0032414]
[1762554767314,0.71536,3453.7,3453.6,0.4736099]
[1762554768017,0.71536,3453.7,3453.6,0.0043399]
[1762554768417,1.38624383,3453.7,3453.6,0.47632384]
[1762554768617,1.38624383,3453.7,3453.6,0.00704384]
[1762554770118,0.2461,3453.1,3453.0,0.46935]
[1762554771117,0.2461,3453.1,3453.0,0.47158596]
[1762554771326,0.71544,3453.1,3453.0,0.47158596]
[1762554771722,0.2461,3453.1,3453.0,0.47158596]
[1762554772028,0.71544,3453.1,3453.0,0.47158596]
[1762554775325,0.71544,3453.1,3453.0,0.00223596]
[1762554776024,0.71544,3453.1,3453.0,0.47159596]
[1762554778428,0.71544,3453.1,3453.0,0.00223596]
[1762554779626,0.71544,3453.1,3453.0,0.47159596]
[1762554780330,0.3699,3453.5,3453.4,0.4693]
[1762554780728,0.1419,3453.5,3453.4,0.6707]
[1762554782321,0.61113,3454.0,3453.9,0.46924]
[1762554782522,0.14560117,3454.5,3453.9,0.67064]
[1762554782729,0.61002,3454.0,3453.9,0.67064]
[1762554784138,0.1408,3454.0,3453.9,0.67064]
[1762554784835,0.46919,3454.3,3454.2,0.46918]
[1762554785021,0.69719,3454.3,3454.2,0.46918]
[1762554785221,0.89741639,3454.3,3454.2,0.46918]
[1762554785430,0.228,3454.3,3454.2,0.46918]
[1762554785930,0.46921,3454.2,3454.1,0.46921]
[1762554787223,0.46921,3454.2,3454.1,0.67061]
[1762554787627,0.69721,3454.2,3454.1,0.46921]
[1762554787835,1.36662639,3454.2,3454.1,0.46921]
[1762554794642,0.46934,3453.2,3453.1,0.46934]
[1762554795242,0.46934,3453.2,3453.0,0.00223596]
[1762554795535,0.46934,3453.2,3453.1,0.46934]
[1762554795741,0.69734,3453.1,3453.0,0.00223596]
[1762554798637,1.36888485,3453.1,3453.0,0.00223596]
[1762554800041,0.228,3452.8,3451.7,2.07804911]
[1762554800237,0.228,3452.8,3451.3,2.59490604]
[1762554800238,0.46951,3451.9,3451.3,2.07804911]
[1762554800540,0.1408,3452.0,3451.8,0.2036]
[1762554800835,0.1408,3452.0,3451.9,0.2036]
[1762554800836,0.8383,3452.0,3451.9,0.2036]
[1762554801029,0.46951,3451.9,3451.6,0.46954]
[1762554801230,0.46953,3451.7,3451.6,0.00237768]
[1762554801736,0.69753,3451.7,3451.6,0.00237768]
[1762554808439,0.3902,3450.0,3449.8,2.33892208]
[1762554808742,0.1429,3450.0,3449.9,0.2058]
[1762554809344,0.1429,3450.0,3449.9,0.20785078]
[1762554809735,0.3902,3450.0,3449.9,0.00205078]
[1762554810049,0.2473,3449.3,3449.2,0.46987]
[1762554810247,0.1429,3449.0,3448.8,0.46993]
[1762554810642,0.1429,3449.0,3448.9,0.2058]
[1762554811042,0.39304481,3449.0,3448.9,0.00214998]
[1762554817246,0.39304481,3449.0,3448.9,0.47205998]
[1762554818052,0.14574481,3449.0,3448.9,0.67785998]
[1762554819952,0.00284481,3449.0,3448.9,8.67785998]
[1762554822155,0.00284481,3449.0,3448.5,0.1043]
[1762554822156,0.1478,3448.5,3447.5,0.1015]
[1762554822450,0.69772,3448.1,3447.7,0.47007]
[1762554822864,0.69772,3448.1,3447.5,0.47009]
[1762554823066,0.69772,3448.1,3447.5,0.4701]
[1762554823363,0.69772,3448.1,3448.0,0.08871097]
[1762554823662,0.47008,3447.7,3446.4,0.27]
[1762554823862,0.69778,3447.7,3447.6,0.47009]
[1762554824061,0.2277,3447.7,3447.6,0.47009]
[1762554824563,0.2277,3447.7,3447.6,0.47325959]
[1762554825149,0.69778,3447.7,3447.6,0.00316959]
[1762554825354,0.2277,3447.7,3447.6,0.47325959]
[1762554825859,0.69778,3447.7,3447.6,0.00316959]
[1762554826063,0.47014,3447.3,3447.0,0.47017]
[1762554826362,0.2277,3447.1,3447.0,0.47017]
[1762554827063,0.2277,3447.1,3447.0,0.47232096]
[1762554827355,0.69786,3447.1,3447.0,0.00215096]
[1762554827556,0.2277,3447.1,3447.0,0.00215096]
[1762554828263,0.47012,3447.4,3447.0,0.00215096]
[1762554829060,0.2277,3447.1,3447.0,0.47232096]
[1762554830351,0.2277,3447.3,3447.2,0.47013]
[1762554831061,0.69783,3447.3,3447.2,0.47013]
[1762554831464,0.69785,3447.2,3447.1,0.47016]
[1762554831959,0.2277,3447.2,3447.1,0.47016]
[1762554833466,0.69785,3447.2,3447.1,0.47016]
[1762554833664,0.2277,3447.2,3447.1,0.47016]
[1762554836268,0.31838711,3447.2,3447.1,0.47016]
[1762554836463,0.2277,3447.2,3447.1,0.47016]
[1762554836868,0.31838711,3447.2,3447.1,0.47016]
[1762554837062,0.2277,3447.2,3447.1,0.47016]
[1762554837263,0.31838711,3447.2,3447.1,0.47016]
[1762554838267,0.78853711,3447.2,3447.1,0.47016]
[1762554838768,1.47417498,3447.2,3447.1,0.47016]
[1762554839170,1.00402498,3447.2,3447.1,0.47016]
[1762554839770,1.47417498,3447.2,3447.1,0.47016]
[1762554840462,1.00402498,3447.2,3447.1,0.47016]
[1762554843667,0.77632498,3447.2,3447.1,0.67746]
[1762554844267,0.68563787,3447.2,3447.1,0.67746]
[1762554846678,0.1478,3447.5,3447.4,0.67742]
[1762554846867,0.83438189,3447.5,3447.4,0.67742]
[1762554852384,0.2348,3447.1,3447.0,0.00215096]
[1762554852684,0.92138189,3447.1,3447.0,0.47232096]
[1762554856991,1.39154189,3447.1,3447.0,0.47232096]
[1762554857588,0.92138189,3447.1,3447.0,0.47232096]
[1762554862978,0.68658189,3447.1,3447.0,0.67962096]
[1762554863290,0.1478,3447.5,3447.4,0.67742]
[1762554863491,0.83676946,3447.5,3447.4,0.67742]
[1762554863983,0.68896946,3447.5,3447.4,0.67742]
[1762554864185,0.3826,3448.0,3447.9,0.47005]
[1762554864493,1.07151707,3448.0,3447.9,0.47005]
[1762554864786,0.68891707,3448.0,3447.9,0.67735]
[1762554865386,0.68891707,3448.0,3447.0,4.33370007]
[1762554865387,0.2348,3448.3,3448.2,0.47001]
[1762554865689,0.92346193,3448.3,3448.2,0.47001]
[1762554868179,0.2348,3448.3,3448.2,0.47001]
[1762554870792,0.2348,3448.3,3448.2,0.67661]
[1762554871193,0.0043475,3448.4,3448.3,0.6766]
[1762554878296,0.00284481,3449.0,3448.9,0.67221]
[1762554879296,0.234,3449.9,3449.8,0.46978]
[1762554880200,0.23730351,3449.9,3449.8,0.47349032]
[1762554882001,0.23730351,3449.9,3449.8,0.00371032]
[1762554882798,0.23730351,3449.9,3449.8,0.47350032]
[1762554883000,0.70708351,3449.9,3449.8,0.47350032]
[1762554884107,0.23730351,3449.9,3449.8,0.47350032]
[1762554889410,0.23730351,3449.9,3449.8,0.67570032]
[1762554889613,0.00330351,3449.9,3449.8,0.67570032]
[1762554889912,0.24850351,3449.9,3449.8,0.67570032]
[1762554901922,0.00330351,3449.9,3449.8,0.67570032]
[1762554908120,0.68178516,3449.9,3449.8,0.67570032]
[1762554916724,0.00330351,3449.9,3449.8,0.67570032]
[1762554919036,0.1441,3450.5,3450.4,0.66881]
[1762554920032,0.14628169,3450.5,3450.4,0.66881]
[1762554920838,0.00218169,3450.5,3450.4,0.66881]
[1762554924331,0.1441,3451.0,3450.9,0.66874]
[1762554924736,0.61366,3451.5,3451.4,0.46958]
[1762554924737,0.84916,3451.5,3451.4,0.46958]
[1762554924938,0.3796,3451.5,3451.4,0.46958]
[1762554925243,0.38307661,3451.5,3451.4,0.66868]
[1762554925444,0.14757661,3451.5,3451.4,0.66868]
[1762554927245,0.38307661,3451.5,3451.4,0.1991]
[1762554927436,0.14757661,3451.5,3451.4,0.1991]
[1762554927634,0.14757661,3451.5,3451.4,0.66868]
[1762554931446,0.14757661,3451.5,3451.1,0.0043475]
[1762554931447,0.7115,3451.2,3451.1,0.0043475]
[1762554931746,0.7115,3451.2,3451.1,0.4739675]
[1762554931941,0.7115,3451.2,3451.1,0.0043475]
[1762554933548,0.7115,3451.2,3451.1,0.4739675]
[1762554934644,0.7115,3451.2,3451.1,0.0043475]
[1762554935047,0.7115,3451.2,3451.1,0.4739675]
[1762554937542,0.7115,3451.2,3451.1,0.0043475]
[1762554938547,0.7115,3451.2,3451.1,0.4739675]
[1762554941346,0.37777661,3451.5,3451.4,0.46957]
[1762554941648,0.14757661,3451.5,3451.4,0.66907]
[1762554949665,0.14757661,3451.5,3450.5,1.84906661]
[1762554949965,0.14757661,3451.5,3451.4,0.46957]
[1762554957260,0.37777661,3451.5,3451.4,0.46957]
[1762554957765,0.84733661,3451.5,3451.4,0.46957]
[1762554958965,0.37777661,3451.5,3451.4,0.46957]
[1762554963864,0.14757661,3451.5,3451.4,0.46957]
[1762554971271,0.82764355,3451.5,3451.4,0.46957]
[1762554971474,0.14757661,3451.5,3451.4,0.46957]
[1762554971669,0.82764355,3451.5,3451.4,0.46957]
[1762554971868,0.14757661,3451.5,3451.4,0.46957]
[1762554972068,0.82764355,3451.5,3451.4,0.46957]
[1762554972270,0.14757661,3451.5,3451.4,0.46957]
[1762554972469,0.82764355,3451.5,3451.4,0.46957]
[1762554972773,0.14757661,3451.5,3451.4,0.46957]
[1762554973173,0.82764355,3451.5,3451.4,0.46957]
[1762554973377,0.14757661,3451.5,3451.4,0.46957]
[1762554973975,0.82764355,3451.5,3451.4,0.46957]
[1762554974273,0.14757661,3451.5,3451.4,0.46957]
[1762554974774,0.82764355,3451.5,3451.4,0.46957]
[1762554974971,0.14757661,3451.5,3451.4,0.46957]
[1762554975376,0.82764355,3451.5,3451.4,0.46957]
[1762554975879,0.14757661,3451.5,3451.4,0.46957]
[1762554976277,0.82764355,3451.5,3451.4,0.46957]
[1762554976577,0.14757661,3451.5,3451.4,0.46957]
[1762554976979,0.82764355,3451.5,3451.4,0.46957]
[1762554977180,0.14757661,3451.5,3451.4,0.46957]
[1762554985388,0.00347661,3451.5,3451.4,0.46957]
[1762554985687,0.0043475,3451.8,3451.7,0.46953]
[1762554986786,0.00801804,3451.8,3451.7,0.46953]
[1762554989786,0.1366,3452.5,3452.4,0.46944]
[1762554990894,0.37631469,3452.5,3452.4,0.47183709]
[1762554991892,0.13911469,3452.5,3452.4,0.47183709]
[1762554992387,0.37631469,3452.5,3452.4,0.47183709]
[1762554992987,0.13911469,3452.5,3452.4,0.47183709]
[1762554996291,0.37631469,3452.5,3452.4,0.47183709]
[1762554996995,0.13911469,3452.5,3452.4,0.47183709]
[1762554998393,0.37631469,3452.5,3452.4,0.47183709]
[1762554998794,0.13911469,3452.5,3452.4,0.47183709]
[1762554999890,0.3831,3453.5,3453.4,0.4693]
[1762555000898,0.38556628,3453.5,3453.4,0.4693]
[1762555008805,0.146,3454.0,3453.1,0.0043475]
[1762555008806,0.146,3454.0,3453.9,0.46924]
[1762555009698,0.14898025,3454.0,3453.9,0.46924]
[1762555029322,0.38908025,3454.0,3453.9,0.46924]
[1762555033826,0.85830025,3454.0,3453.9,0.46924]
[1762555034231,0.38908025,3454.0,3453.9,0.46924]
[1762555035726,0.85830025,3454.0,3453.9,0.46924]
[1762555036429,1.53596454,3454.0,3453.9,0.46924]
[1762555038335,0.1415,3453.5,3452.3,2.08165411]
[1762555038632,0.2401,3452.1,3452.0,0.46949]
[1762555038934,0.3816,3452.0,3451.9,0.46951]
[1762555039131,1.05926429,3452.0,3451.9,0.46951]
[1762555039430,1.05926429,3452.0,3451.9,0.00359985]
[1762555039431,0.85109,3452.0,3451.9,0.00359985]
[1762555039826,0.85109,3452.0,3451.9,0.47310985]
[1762555041138,0.85109,3452.0,3451.9,0.00359985]
[1762555044336,0.70964,3451.7,3451.6,0.0043475]
[1762555044738,0.46961,3451.2,3449.8,0.664]
[1762555045037,0.2401,3450.3,3450.2,0.46974]
[1762555045239,0.24335933,3450.3,3450.2,0.47290996]
[1762555045635,0.71308933,3450.3,3450.2,0.47290996]
[1762555046033,0.71308933,3450.3,3450.2,0.00316996]
[1762555050340,0.71308933,3450.3,3450.2,0.47290996]
[1762555050933,0.71308933,3450.3,3450.2,0.00316996]
[1762555051239,0.71308933,3450.3,3450.2,0.47290996]
[1762555052037,0.24335933,3450.3,3450.2,0.47290996]
[1762555052237,0.00325933,3450.3,3450.2,0.71840996]
[1762555060044,0.00325933,3450.3,3450.2,8.71840996]
[1762555062739,1.03540805,3452.3,3450.5,0.1282]
[1762555062941,0.3914,3451.5,3451.4,0.46958]
[1762555063848,0.39441569,3451.5,3451.4,0.46958]
[1762555065246,0.0043475,3452.3,3452.2,0.70607]
[1762555065448,0.1361,3453.0,3452.9,0.70597]
[1762555065643,0.386,3453.5,3453.4,0.4693]
[1762555066355,0.13915943,3453.5,3453.4,0.70887021]
[1762555067052,0.00305943,3453.5,3453.4,0.70887021]
[1762555074955,0.13915943,3453.5,3453.4,0.70887021]
[1762555080559,0.13915943,3453.5,3453.4,0.47227021]
[1762555080560,0.37265943,3453.5,3453.4,0.47227021]
[1762555080753,0.37265943,3453.5,3453.4,0.00297021]
[1762555080954,0.37265943,3453.5,3453.4,0.47227021]
[1762555081154,0.84194943,3453.5,3453.4,0.00297021]
[1762555081757,0.70284,3453.1,3453.0,0.46935]
[1762555081959,0.2335,3452.9,3452.8,0.46938]
[1762555082164,0.70288,3452.9,3452.8,0.46938]
[1762555082461,0.1363,3453.0,3451.5,0.1282]
[1762555082462,0.1363,3452.5,3451.9,0.2401475]
[1762555082664,0.3698,3452.5,3452.4,0.46944]
[1762555082863,0.83923,3452.5,3452.4,0.47203635]
[1762555085664,0.83923,3452.5,3452.4,0.00259635]
[1762555086563,0.83923,3452.5,3452.4,0.47203635]
[1762555087163,0.83923,3452.5,3452.4,0.00259635]
[1762555087467,0.46949,3452.1,3452.0,0.46949]
[1762555087658,0.83929,3452.0,3451.9,0.4738475]
[1762555088365,0.83929,3452.0,3451.9,0.0043475]
[1762555088667,0.83929,3452.0,3451.9,0.00755521]
[1762555090970,0.83937,3451.5,3451.4,0.46956]
[1762555091670,0.83937,3451.5,3451.4,0.46958]
[1762555091869,0.83937,3451.5,3451.4,0.47315037]
[1762555092368,0.83937,3451.5,3451.4,0.00357037]
[1762555093569,0.7031,3451.2,3451.1,0.0043475]
[1762555093963,0.4696,3451.2,3451.1,0.0043475]
[1762555094160,0.2335,3451.2,3451.1,0.4739675]
[1762555094569,0.7031,3451.2,3451.1,0.476264]
[1762555094970,0.2335,3451.2,3451.1,0.476264]
[1762555095171,0.7031,3451.2,3451.1,0.476264]
[1762555095966,0.2335,3451.2,3451.1,0.476264]
[1762555097569,0.7031,3451.2,3451.1,0.476264]
[1762555097770,0.2335,3451.2,3451.1,0.476264]
[1762555097969,0.83937,3451.5,3451.4,0.46958]
[1762555098376,0.2335,3451.2,3451.1,0.006644]
[1762555099072,0.2335,3451.2,3451.1,0.476264]
[1762555099573,0.7031,3451.2,3451.1,0.006644]
[1762555100674,0.7031,3451.2,3451.1,0.476264]
[1762555100878,0.2335,3451.2,3451.1,0.476264]
[1762555102180,0.7031,3451.2,3451.1,0.476264]
[1762555102377,0.7031,3451.2,3451.1,0.006644]
[1762555107873,0.7031,3451.2,3451.1,4.4e-05]
[1762555109984,1.37877932,3451.2,3451.1,4.4e-05]
[1762555110787,1.37877932,3451.2,3450.8,0.0043475]
[1762555110788,0.70234,3450.9,3450.8,0.0043475]
[1762555111284,1.37820472,3450.9,3450.8,0.0043475]
[1762555111589,1.38106831,3450.9,3450.8,0.00678133]
[1762555112085,0.70244,3450.4,3450.3,0.46972]
[1762555113091,0.70244,3450.4,3450.3,0.47211398]
[1762555116490,0.2327,3450.1,3450.0,0.0043475]
[1762555116685,0.70245,3450.1,3450.0,0.0043475]
[1762555116987,1.37945129,3450.1,3450.0,0.0043475]
[1762555117486,1.37945129,3450.1,3450.0,0.00657259]
[1762555118086,0.84105,3449.5,3449.4,0.46985]
[1762555118589,0.70257,3449.4,3449.3,0.46986]
[1762555119090,0.70257,3449.4,3449.3,0.47192665]
[1762555119278,0.70257,3449.4,3449.3,0.00206665]
[1762555120881,0.1385,3449.0,3448.0,0.1234]
[1762555121193,0.46994,3448.8,3448.7,0.46993]
[1762555121389,0.2447,3448.9,3448.8,0.46992]
[1762555121786,0.71462,3448.9,3448.8,0.46992]
[1762555121991,0.71462,3448.9,3448.8,0.47251403]
[1762555122883,0.71462,3448.9,3448.8,0.00259403]
[1762555123886,0.2447,3448.9,3448.8,0.47252403]
[1762555128596,0.71462,3448.9,3448.8,0.47252403]
[1762555134296,0.71462,3448.9,3448.8,0.00259403]
[1762555135392,0.2447,3448.1,3448.0,0.47004]
[1762555136394,0.71750924,3448.1,3448.0,0.47269137]
[1762555137202,0.71750924,3448.1,3448.0,0.00265137]
[1762555140687,0.71750924,3448.1,3448.0,0.47269137]
[1762555141597,0.24747924,3448.1,3448.0,0.47269137]
[1762555141799,0.71750924,3448.1,3448.0,0.47269137]
[1762555142194,0.24747924,3448.1,3448.0,0.47269137]
[1762555142592,0.00277924,3448.1,3448.0,0.70109137]
[1762555143198,1.03106055,3449.2,3449.0,0.3729]
[1762555143402,0.83756602,3449.7,3449.6,0.2284]
[1762555143700,0.0043475,3449.7,3449.5,0.46983]
[1762555143895,0.2459,3449.6,3449.5,0.46983]
[1762555144200,0.0043475,3449.7,3449.5,0.46983]
[1762555144201,0.0043475,3449.7,3449.6,0.2284]
[1762555144394,0.1414,3450.5,3449.6,0.2284]
[1762555144599,0.1414,3450.5,3450.4,0.69811]
[1762555144996,0.3873,3450.5,3450.4,0.69811]
[1762555145193,0.1414,3450.5,3450.4,0.69811]
[1762555145394,0.14406037,3450.5,3450.4,0.69811]
[1762555147696,0.38996037,3450.5,3450.4,0.46971]
[1762555148604,0.38996037,3450.5,3449.5,0.1237]
[1762555148605,0.2459,3450.3,3450.2,0.46973]
[1762555149904,0.71563,3450.3,3450.2,0.46973]
[1762555150501,0.2459,3450.3,3450.2,0.46973]
[1762555150999,0.71563,3450.3,3450.2,0.46973]
[1762555151402,0.2459,3450.3,3450.2,0.46973]
[1762555152303,0.71563,3450.3,3450.2,0.46973]
[1762555152499,0.2459,3450.2,3449.5,0.1237]
[1762555152804,0.3873,3450.0,3449.9,0.46977]
[1762555153508,0.3873,3450.0,3449.9,0.46978]
[1762555154608,0.85707,3450.0,3449.9,0.46978]
[1762555155504,0.2459,3449.9,3449.3,0.0043475]
[1762555155704,0.46979,3449.8,3449.4,0.2284]
[1762555155911,0.71569,3449.8,3449.7,0.46981]
[1762555156102,0.2459,3449.8,3449.7,0.46981]
[1762555157206,0.71573,3449.6,3449.5,0.46983]
[1762555162814,0.1414,3449.5,3449.4,0.46985]
[1762555163407,0.3873,3449.5,3449.4,0.46985]
[1762555164415,0.46985,3449.4,3449.3,0.7026075]
[1762555164614,0.85713,3449.5,3449.4,0.46985]
[1762555164811,0.71575,3449.4,3449.3,0.0043475]
[1762555166219,0.71584,3448.8,3448.7,0.46993]
[1762555169111,0.46995,3448.7,3448.5,0.46996]
[1762555169415,0.70405,3448.7,3448.6,0.46996]
[1762555170006,0.85139,3448.5,3448.4,0.46998]
[1762555172217,0.47002,3448.4,3448.3,0.46999]
[1762555172426,0.1473,3448.5,3448.0,0.00265137]
[1762555172427,0.70413,3448.3,3448.2,0.47]
[1762555176418,0.47003,3448.2,3448.1,0.47002]
[1762555176619,0.70413,3448.2,3448.1,0.47002]
[1762555183520,0.46999,3448.4,3448.1,0.2273]
[1762555183731,0.47002,3448.3,3448.2,0.47]
[1762555184030,0.70862,3448.3,3448.2,0.47]
[1762555185232,0.70862,3448.3,3448.2,0.7167]
[1762555185635,0.1473,3448.5,3448.4,0.71668]
[1762555186626,0.46997,3448.5,3448.4,0.71668]
[1762555186826,0.70853,3448.8,3448.7,0.46993]
[1762555187129,0.46993,3448.8,3448.7,0.71663]
[1762555187931,0.46993,3448.8,3448.7,0.2467]
[1762555188136,0.70853,3448.8,3448.7,0.2467]
[1762555189342,0.70853,3448.8,3448.7,0.71664]
[1762555190934,0.46993,3448.8,3448.7,0.46994]
[1762555191134,0.46993,3448.8,3448.7,0.71664]
[1762555193441,0.47,3448.4,3448.3,0.2467]
[1762555193740,0.47,3448.4,3448.3,0.7167]
[1762555200146,0.6741838,3448.4,3448.3,0.7167]
[1762555200446,0.2482,3448.9,3448.8,0.2365]
[1762555200638,1.48308522,3448.9,3448.8,0.2365]
[1762555200844,1.39242888,3448.9,3448.8,0.2365]
[1762555201437,0.2482,3448.8,3448.2,0.47001]
[1762555201642,0.1413,3448.5,3448.4,0.2365]
[1762555201843,0.1413,3448.5,3448.4,0.70648]
[1762555202145,0.46997,3448.5,3448.4,0.70648]
[1762555203744,0.1473,3449.0,3448.9,0.2365]
[1762555203938,1.06967343,3449.0,3448.9,0.2365]
[1762555204138,0.82147343,3449.0,3448.9,0.2365]
[1762555204543,1.29137343,3449.0,3448.9,0.70642]
[1762555204740,0.67417343,3449.0,3448.9,0.70642]
[1762555205045,1.28537343,3449.0,3448.9,0.70642]
[1762555205342,1.53357343,3449.0,3448.9,0.70642]
[1762555205543,1.28537343,3449.0,3448.9,0.70642]
[1762555206248,0.4742375,3449.1,3449.0,0.7064]
[1762555206638,0.0043475,3449.1,3449.0,0.7064]
[1762555206843,0.0043475,3449.1,3449.0,0.8516]
[1762555207343,0.1414,3450.0,3449.9,0.70628]
[1762555207549,0.46978,3450.0,3449.9,0.70628]
[1762555208844,0.1413,3449.5,3448.8,0.70642]
[1762555209044,0.1413,3449.5,3448.6,0.46995]
[1762555209045,0.46993,3448.8,3448.6,0.46995]
[1762555209347,0.46993,3448.8,3448.0,2.20789034]
[1762555209348,0.2482,3448.2,3448.1,0.47001]
[1762555209848,0.71823,3448.2,3448.0,0.00265137]
[1762555210047,0.71823,3448.2,3448.0,0.47269137]
[1762555211837,0.2482,3448.1,3448.0,0.00265137]
[1762555214952,0.92033183,3448.1,3448.0,0.00265137]
[1762555215152,0.92033183,3448.1,3446.5,2.18373897]
[1762555215153,0.47012,3447.4,3446.5,0.1237]
[1762555215842,0.47014,3447.3,3447.2,0.47015]
[1762555216040,0.47250767,3447.3,3447.2,0.47262758]
[1762555216646,0.72070767,3447.3,3447.2,0.47262758]
[1762555217153,0.72070767,3447.3,3447.2,0.70912758]
[1762555217741,0.72070767,3447.3,3447.2,0.47262758]
[1762555218151,0.25056767,3447.3,3447.2,0.47262758]
[1762555219952,0.25056767,3447.3,3447.2,0.70912758]
[1762555221147,0.25056767,3447.3,3447.2,0.47262758]
[1762555221349,0.25056767,3447.3,3447.2,0.70912758]
[1762555223556,0.72070767,3447.3,3447.2,0.70912758]
[1762555224761,0.25056767,3447.3,3447.2,0.70912758]
[1762555225157,0.00236767,3447.3,3447.2,0.70912758]
[1762555226462,0.1413,3448.0,3447.9,0.70805]
[1762555227162,0.47001,3448.3,3448.2,0.47001]
[1762555227361,0.47245299,3448.3,3448.2,0.47001]
[1762555227563,0.00244299,3448.3,3448.2,0.70801]
[1762555229162,0.0043475,3448.5,3448.4,0.70799]
[1762555230259,0.00703256,3448.5,3448.4,0.70799]
[1762555254282,0.00703256,3448.5,3448.4,2.26497835]
[1762555255273,0.00703256,3448.5,3448.4,0.70799]
[1762555259280,0.00703256,3448.5,3448.4,2.76802897]
[1762555269092,0.00703256,3448.5,3448.4,11.35502897]
[1762555269394,0.84888,3450.0,3449.9,0.46978]
[1762555269579,1.50675188,3450.0,3449.9,0.46978]
[1762555270280,1.50933018,3450.0,3449.9,0.47228151]
[1762555270484,1.50933018,3450.0,3449.9,0.00250151]
[1762555272377,1.50933018,3450.0,3449.6,0.0043475]
[1762555272378,0.71021,3449.7,3449.6,0.0043475]
[1762555272583,0.71021,3449.7,3449.6,4.75e-05]
[1762555272883,0.2404,3449.7,3449.6,0.4698675]
[1762555273089,0.71021,3449.7,3449.6,0.4698675]
[1762555273486,0.71021,3449.7,3449.6,0.47357494]
[1762555273692,0.2404,3449.7,3449.6,0.47357494]
[1762555274696,0.2404,3449.7,3449.6,0.71937494]
[1762555274885,0.2404,3449.7,3449.6,0.47357494]
[1762555276093,0.71021,3449.7,3449.6,0.47357494]
[1762555276597,0.4698,3449.8,3449.7,0.46981]
[1762555277100,0.7102,3449.8,3449.7,0.46981]
[1762555288694,0.2404,3449.8,3449.7,0.46981]
[1762555290602,0.7102,3449.8,3449.7,0.46981]
[1762555297398,1.36402488,3449.8,3449.7,0.46981]
[1762555301408,2.70481668,3452.2,3449.7,1.56598546]
[1762555301607,5.16112327,3453.4,3452.5,0.58892]
[1762555301809,0.226,3453.3,3452.6,1.39]
[1762555302109,0.226,3452.9,3452.7,3.90420744]
[1762555302309,0.226,3452.9,3452.8,0.82483167]
[1762555302513,0.22920295,3452.9,3452.8,0.82720975]
[1762555302711,0.22920295,3452.9,3452.8,1.07410975]
[1762555303212,0.22920295,3452.9,3452.8,2.6271827]
[1762555304307,0.22920295,3452.9,3452.8,1.07410975]
[1762555304614,0.22920295,3452.9,3452.8,1.86106741]
[1762555304798,0.22920295,3452.9,3452.8,0.82720975]
[1762555307615,0.22920295,3452.9,3452.8,1.60267418]
[1762555308207,0.00320295,3452.9,3452.8,1.07410975]
[1762555308514,0.00320295,3452.9,3452.8,1.84725852]
[1762555309911,2.899,3457.0,3452.8,1.84725852]